fUST/lending_fUST_20240919
["ID","MTS","AMOUNT","RATE_DAILY","PERIOD"]
[338571202,1726740642118,-500.0,0.00016438,2]
[338571203,1726740642127,-500.0,0.00016438,2]
[338571204,1726740642136,-151.0,0.00016438,2]
[338571205,1726740642146,-500.0,0.00016438,2]
[338571206,1726740642157,-500.0,0.00016438,2]
[338571207,1726740642166,-500.0,0.00016438,2]
[338571208,1726740642176,-500.0,0.00016438,2]
[338571209,1726740642186,-500.0,0.00016438,2]
[338571210,1726740642195,-652.98,0.00016438,2]
[338571211,1726740642205,-2085.62,0.00016438,2]
[338571212,1726740642227,-551.72,0.00016438,2]
[338571213,1726740642236,-500.0,0.00016438,2]
[338571214,1726740642246,-500.0,0.00016438,2]
[338571215,1726740642256,-500.0,0.00016438,2]
[338571216,1726740642266,-500.0,0.00016438,2]
[338571217,1726740642275,-500.0,0.00016438,2]
[338571218,1726740642286,-500.0,0.00016438,2]
[338571219,1726740642295,-500.0,0.00016438,2]
[338571220,1726740642305,-500.0,0.00016438,2]
[338571221,1726740642315,-500.0,0.00016438,2]
[338571222,1726740642325,-500.0,0.00016438,2]
[338571223,1726740642334,-500.0,0.00016438,2]
[338571224,1726740642343,-500.0,0.00016438,2]
[338571225,1726740642353,-704.49,0.00016438,2]
[338571226,1726740642363,-1044.529557,0.00016438,2]
[338571227,1726740642372,-500.0,0.00016438,2]
[338571228,1726740642382,-500.0,0.00016438,2]
[338571229,1726740642392,-1795.31,0.00016438,2]
[338571230,1726740642402,-500.0,0.00016438,2]
[338571231,1726740642411,-1313.78,0.00016438,2]
[338571232,1726740642421,-681.91,0.00016438,2]
[338571233,1726740642430,-525.23152208,0.00016438,2]
[338571234,1726740642440,-500.0,0.00016438,2]
[338571235,1726740642449,-500.0,0.00016438,2]
[338571236,1726740642464,-1044.529557,0.00016438,2]
[338571237,1726740642474,-500.0,0.00016438,2]
[338571238,1726740642483,-580.38745002,0.00016438,2]
[338571239,1726740642493,-1515.81,0.00016438,2]
[338571240,1726740642503,-500.0,0.00016438,2]
[338571241,1726740642512,-500.0,0.00016438,2]
[338571242,1726740642521,-700.7,0.00016438,2]
[338571243,1726740642531,-872.26,0.00016438,2]
[338571244,1726740642541,-928.9,0.00016438,2]
[338571245,1726740642555,-805.38,0.00016438,2]
[338571246,1726740642566,-500.0,0.00016438,2]
[338571247,1726740642575,-2341.35,0.00016438,2]
[338571248,1726740642584,-268.650822,0.00016438,2]
[338571249,1726740642594,-1703.77,0.00016438,2]
[338571250,1726740642603,-500.0,0.00016438,2]
[338571251,1726740642613,-749.47,0.00016438,2]
[338571252,1726740642624,-268.650822,0.00016438,2]
[338571253,1726740642633,-500.0,0.00016438,2]
[338571254,1726740642642,-500.0,0.00016438,2]
[338571255,1726740642651,-1362.24,0.00016438,2]
[338571256,1726740642662,-500.0,0.00016438,2]
[338571257,1726740642671,-500.0,0.00016438,2]
[338571258,1726740642681,-500.0,0.00016438,2]
[338571259,1726740642690,-193.75855794,0.00016438,2]
[338571260,1726740642700,-528.40252368,0.00016438,2]
[338571261,1726740642709,-500.0,0.00016438,2]
[338571262,1726740642719,-534.41,0.00016438,2]
[338571263,1726740642728,-952.51,0.00016438,2]
[338571264,1726740642737,-438.00006726,0.00016438,2]
[338571265,1726740642747,-500.0,0.00016438,2]
[338571266,1726740642756,-868.5,0.00016438,2]
[338571267,1726740642766,-924.54,0.00016438,2]
[338571268,1726740642775,-722.36,0.00016438,2]
[338571269,1726740642784,-500.0,0.00016438,2]
[338571270,1726740642793,-851.97,0.00016438,2]
[338571271,1726740642803,-2616.56,0.00016438,2]
[338571272,1726740642812,-151.0,0.00016438,2]
[338571273,1726740642822,-500.0,0.00016438,2]
[338571274,1726740642831,-2156.69,0.00016438,2]
[338571275,1726740642840,-500.0,0.00016438,2]
[338571276,1726740642849,-632.05933359,0.00016438,2]
[338571277,1726740642859,-500.0,0.00016438,2]
[338571278,1726740642868,-500.0,0.00016438,2]
[338571279,1726740642877,-500.0,0.00016438,2]
[338571280,1726740642885,-500.0,0.00016438,2]
[338571281,1726740642895,-500.0,0.00016438,2]
[338571282,1726740642904,-500.0,0.00016438,2]
[338571283,1726740642913,-500.0,0.00016438,2]
[338571284,1726740642923,-500.0,0.00016438,2]
[338571285,1726740642932,-1443.83,0.00016438,2]
[338571286,1726740642941,-500.0,0.00016438,2]
[338571287,1726740642951,-674.78,0.00016438,2]
[338571288,1726740642963,-151.0,0.00016438,2]
[338571289,1726740642972,-500.0,0.00016438,2]
[338571290,1726740642981,-197.135528,0.00016438,2]
[338571291,1726740642990,-996.28,0.00016438,2]
[338571292,1726740642999,-500.0,0.00016438,2]
[338571293,1726740643009,-197.135528,0.00016438,2]
[338571294,1726740643018,-500.0,0.00016438,2]
[338571295,1726740643027,-151.0,0.00016438,2]
[338571296,1726740643036,-512.02,0.00016438,2]
[338571297,1726740643045,-838.67,0.00016438,2]
[338571298,1726740643054,-500.0,0.00016438,2]
[338571299,1726740643063,-151.0,0.00016438,2]
[338571301,1726740643072,-602.27,0.00016438,2]
[338571302,1726740643082,-1477.55,0.00016438,2]
[338571303,1726740643091,-500.0,0.00016438,2]
[338571304,1726740643102,-225.395251,0.00016438,2]
[338571305,1726740643111,-500.0,0.00016438,2]
[338571308,1726740643120,-500.0,0.00016438,2]
[338571310,1726740643130,-225.395251,0.00016438,2]
[338571312,1726740643140,-815.63,0.00016438,2]
[338571313,1726740643150,-1023.96,0.00016438,2]
[338571314,1726740643161,-500.0,0.00016438,2]
[338571315,1726740643170,-318.01,0.00016438,2]
[338571316,1726740643179,-1597.69,0.00016438,2]
[338571317,1726740643188,-549.03,0.00016438,2]
[338571318,1726740643198,-500.0,0.00016438,2]
[338571319,1726740643208,-500.0,0.00016438,2]
[338571320,1726740643217,-501.41507322,0.00016438,2]
[338571321,1726740643227,-500.0,0.00016438,2]
[338571322,1726740643236,-501.43369214,0.00016438,2]
[338571323,1726740643246,-500.0,0.00016438,2]
[338571324,1726740643255,-455.68785366,0.00016438,2]
[338571325,1726740643265,-1044.3,0.00016438,2]
[338571327,1726740643275,-500.0,0.00016438,2]
[338571328,1726740643285,-500.0,0.00016438,2]
[338571329,1726740643294,-500.0,0.00016438,2]
[338571330,1726740643303,-500.0,0.00016438,2]
[338571331,1726740643313,-898.89,0.00016438,2]
[338571332,1726740643323,-500.0,0.00016438,2]
[338571333,1726740643333,-365.3631285,0.00016438,2]
[338571335,1726740643843,-134.6368715,0.00016438,2]
[338571336,1726740643853,-500.0,0.00016438,2]
[338571338,1726740643862,-1474.04,0.00016438,2]
[338571339,1726740643872,-500.0,0.00016438,2]
[338571340,1726740643881,-1438.07,0.00016438,2]
[338571341,1726740643890,-1138.26,0.00016438,2]
[338571342,1726740643900,-846.31,0.00016438,2]
[338571343,1726740643909,-636.56,0.00016438,2]
[338571344,1726740643919,-551.84,0.00016438,2]
[338571345,1726740643928,-56.27189643,0.00016438,2]
[338571346,1726740643940,-742.67411657,0.00016438,2]
[338571347,1726740643950,-500.0,0.00016438,2]
[338571348,1726740643959,-798.946013,0.00016438,2]
[338571349,1726740643968,-1976.98,0.00016438,2]
[338571350,1726740643978,-882.73,0.00016438,2]
[338571351,1726740643988,-500.0,0.00016438,2]
[338571352,1726740643997,-500.0,0.00016438,2]
[338571353,1726740644007,-500.0,0.00016438,2]
[338571354,1726740644016,-532.50545567,0.00016438,2]
[338571355,1726740644026,-609.63575978,0.00016438,2]
[338571356,1726740644035,-505.93586993,0.00016438,2]
[338571357,1726740644045,-500.0,0.00016438,2]
[338571358,1726740644055,-151.0,0.00016438,2]
[338571359,1726740644066,-500.62213065,0.00016438,2]
[338571360,1726740644076,-977.11,0.00016438,2]
[338571361,1726740644085,-500.0,0.00016438,2]
[338571362,1726740644095,-500.0,0.00016438,2]
[338571363,1726740644105,-850.62,0.00016438,2]
[338571364,1726740644115,-1813.45,0.00016438,2]
[338571365,1726740644124,-500.0,0.00016438,2]
[338571366,1726740644134,-500.0,0.00016438,2]
[338571367,1726740644144,-151.0,0.00016438,2]
[338571368,1726740644154,-500.0,0.00016438,2]
[338571369,1726740644164,-500.0,0.00016438,2]
[338571370,1726740644173,-500.0,0.00016438,2]
[338571371,1726740644183,-338.94244703,0.00016438,2]
[338571372,1726740644193,-500.0,0.00016438,2]
[338571373,1726740644202,-500.0,0.00016438,2]
[338571374,1726740644212,-500.0,0.00016438,2]
[338571375,1726740644222,-500.0,0.00016438,2]
[338571376,1726740644232,-500.0,0.00016438,2]
[338571377,1726740644246,-500.0,0.00016438,2]
[338571378,1726740644255,-500.0,0.00016438,2]
[338571379,1726740644265,-500.0,0.00016438,2]
[338571380,1726740644274,-500.0,0.00016438,2]
[338571381,1726740644284,-500.0,0.00016438,2]
[338571382,1726740644294,-1552.74,0.00016438,2]
[338571383,1726740644304,-213.77734259,0.00016438,2]
[338571384,1726740644313,-1111.2,0.00016438,2]
[338571385,1726740644322,-768.77,0.00016438,2]
[338571386,1726740644332,-500.0,0.00016438,2]
[338571387,1726740644343,-500.0,0.00016438,2]
[338571388,1726740644352,-500.0,0.00016438,2]
[338571389,1726740644362,-500.0,0.00016438,2]
[338571390,1726740644372,-500.0,0.00016438,2]
[338571391,1726740644381,-693.46,0.00016438,2]
[338571392,1726740644392,-670.12,0.00016438,2]
[338571393,1726740644401,-500.0,0.00016438,2]
[338571394,1726740644411,-788.58,0.00016438,2]
[338571395,1726740644421,-500.0,0.00016438,2]
[338571396,1726740644431,-500.0,0.00016438,2]
[338571397,1726740644441,-500.0,0.00016438,2]
[338571398,1726740644450,-500.0,0.00016438,2]
[338571399,1726740644460,-500.0,0.00016438,2]
[338571400,1726740644470,-545.16806321,0.00016438,2]
[338571401,1726740644479,-500.0,0.00016438,2]
[338571402,1726740644488,-500.0,0.00016438,2]
[338571403,1726740644498,-500.0,0.00016438,2]
[338571404,1726740644508,-500.0,0.00016438,2]
[338571405,1726740644518,-589.812491,0.00016438,2]
[338571406,1726740644528,-845.74,0.00016438,2]
[338571407,1726740644537,-589.812491,0.00016438,2]
[338571408,1726740644550,-500.0,0.00016438,2]
[338571409,1726740644560,-500.0,0.00016438,2]
[338571410,1726740644570,-500.0,0.00016438,2]
[338571411,1726740644580,-500.0,0.00016438,2]
[338571412,1726740644591,-500.0,0.00016438,2]
[338571413,1726740644601,-151.0,0.00016438,2]
[338571414,1726740644610,-663.85,0.00016438,2]
[338571415,1726740644621,-810.56,0.00016438,2]
[338571416,1726740644631,-790.93,0.00016438,2]
[338571417,1726740644641,-500.0,0.00016438,2]
[338571418,1726740644652,-3740.87,0.00016438,2]
[338571419,1726740644661,-500.0,0.00016438,2]
[338571420,1726740644671,-837.7,0.00016438,2]
[338571421,1726740644681,-718.389368,0.00016438,2]
[338571422,1726740644690,-810.91,0.00016438,2]
[338571423,1726740644700,-924.59,0.00016438,2]
[338571424,1726740644710,-500.0,0.00016438,2]
[338571425,1726740644719,-718.389368,0.00016438,2]
[338571426,1726740644728,-500.0,0.00016438,2]
[338571427,1726740644738,-508.76,0.00016438,2]
[338571428,1726740644747,-587.95,0.00016438,2]
[338571429,1726740644757,-500.0,0.00016438,2]
[338571430,1726740644767,-500.0,0.00016438,2]
[338571431,1726740644777,-476.17986923,0.00016438,2]
[338571432,1726740644786,-590.34850146,0.00016438,2]
[338571433,1726740644796,-500.0,0.00016438,2]
[338571434,1726740644806,-350.160992,0.00016438,2]
[338571435,1726740644815,-964.92,0.00016438,2]
[338571436,1726740644825,-500.0,0.00016438,2]
[338571437,1726740644834,-500.0,0.00016438,2]
[338571438,1726740644844,-257.391941,0.00016438,2]
[338571439,1726740644854,-500.0,0.00016438,2]
[338571440,1726740644864,-257.391941,0.00016438,2]
[338571441,1726740644874,-237.823983,0.00016438,2]
[338571442,1726740644883,-500.0,0.00016438,2]
[338571443,1726740644893,-500.0,0.00016438,2]
[338571444,1726740644902,-350.160992,0.00016438,2]
[338571445,1726740644912,-500.0,0.00016438,2]
[338571446,1726740644921,-879.21,0.00016438,2]
[338571447,1726740644931,-559.71,0.00016438,2]
[338571448,1726740644940,-500.0,0.00016438,2]
[338571449,1726740644950,-237.823983,0.00016438,2]
[338571450,1726740644960,-670.66,0.00016438,2]
[338571451,1726740644970,-1644.42,0.00016438,2]
[338571452,1726740644979,-500.0,0.00016438,2]
[338571453,1726740644989,-840.72,0.00016438,2]
[338571454,1726740644999,-523.54,0.00016438,2]
[338571455,1726740645009,-500.0,0.00016438,2]
[338571456,1726740645019,-2279.688359,0.00016438,2]
[338571457,1726740645028,-324.21920943,0.00016438,2]
[338571458,1726740645038,-500.0,0.00016438,2]
[338571459,1726740645048,-2279.688359,0.00016438,2]
[338571460,1726740645057,-500.0,0.00016438,2]
[338571461,1726740645067,-500.0,0.00016438,2]
[338571462,1726740645078,-500.0,0.00016438,2]
[338571463,1726740645088,-546.77,0.00016438,2]
[338571464,1726740645098,-500.0,0.00016438,2]
[338571465,1726740645107,-500.0,0.00016438,2]
[338571466,1726740645117,-1700.00000005,0.00016438,2]
[338571467,1726740645126,-500.0,0.00016438,2]
[338571468,1726740645136,-677.77,0.00016438,2]
[338571469,1726740645145,-500.0,0.00016438,2]
[338571470,1726740645155,-909.57,0.00016438,2]
[338571471,1726740645164,-500.0,0.00016438,2]
[338571472,1726740645173,-500.0,0.00016438,2]
[338571473,1726740645183,-656.17,0.00016438,2]
[338571474,1726740645193,-500.0,0.00016438,2]
[338571475,1726740645204,-500.0,0.00016438,2]
[338571476,1726740645220,-500.0,0.00016438,2]
[338571477,1726740645232,-500.0,0.00016438,2]
[338571478,1726740645241,-500.0,0.00016438,2]
[338571479,1726740645250,-500.0,0.00016438,2]
[338571480,1726740645259,-1506.86,0.00016438,2]
[338571481,1726740645268,-500.0,0.00016438,2]
[338571482,1726740645277,-500.0,0.00016438,2]
[338571483,1726740645287,-500.0,0.00016438,2]
[338571484,1726740645296,-502.32566225,0.00016438,2]
[338571485,1726740645306,-500.0,0.00016438,2]
[338571486,1726740645315,-500.0,0.00016438,2]
[338571487,1726740645324,-500.0,0.00016438,2]
[338571488,1726740645333,-151.0,0.00016438,2]
[338571489,1726740645343,-577.25,0.00016438,2]
[338571490,1726740645352,-500.0,0.00016438,2]
[338571491,1726740645361,-500.0,0.00016438,2]
[338571492,1726740645371,-1294.08,0.00016438,2]
[338571493,1726740645381,-500.0,0.00016438,2]
[338571494,1726740645391,-980.68,0.00016438,2]
[338571495,1726740645401,-500.0,0.00016438,2]
[338571496,1726740645410,-380.84,0.00016438,2]
[338571497,1726740645420,-500.0,0.00016438,2]
[338571498,1726740645429,-885.04,0.00016438,2]
[338571499,1726740645438,-500.0,0.00016438,2]
[338571500,1726740645448,-500.0,0.00016438,2]
[338571501,1726740645457,-500.0,0.00016438,2]
[338571502,1726740645471,-500.0,0.00016438,2]
[338571503,1726740645480,-500.0,0.00016438,2]
[338571504,1726740645490,-74515.59,0.00016438,2]
[338571505,1726740645500,-500.0,0.00016438,2]
[338571506,1726740645509,-500.0,0.00016438,2]
[338571507,1726740645518,-824.97,0.00016438,2]
[338571508,1726740645528,-840.67,0.00016438,2]
[338571509,1726740645539,-500.0,0.00016438,2]
[338571510,1726740645554,-1495.82,0.00016438,2]
[338571511,1726740645563,-233.08817321,0.00016438,2]
[338571512,1726740645573,-500.0,0.00016438,2]
[338571513,1726740645583,-9107.69,0.00016438,2]
[338571514,1726740645595,-513.72926842,0.00016473,2]
[338571515,1726740645606,-351.43834277,0.00016473,2]
[338571516,1726740645616,-501.15771748,0.00016473,2]
[338571517,1726740645627,-500.88481706,0.00016473,2]
[338571518,1726740645638,-501.50815981,0.00016473,2]
[338571519,1726740645648,-501.05784197,0.00016473,2]
[338571520,1726740645657,-298.91044868,0.00016473,2]
[338571521,1726740645670,-500.0,0.00016473,2]
[338571522,1726740645679,-500.0,0.00016473,2]
[338571523,1726740645689,-500.0,0.00016473,2]
[338571524,1726740645702,-200.13184498,0.00016473,2]
[338571525,1726740645712,-199.67272366,0.00016473,2]
[338571526,1726740645721,-500.0,0.00016473,2]
[338571527,1726740645731,-500.0,0.00016473,2]
[338571528,1726740645741,-639.11995649,0.00016473,2]
[338571529,1726740645751,-500.0,0.00016473,2]
[338571530,1726740645760,-500.0,0.00016473,2]
[338571531,1726740645770,-500.0,0.00016473,2]
[338571532,1726740645780,-500.0,0.00016473,2]
[338571533,1726740645790,-500.0,0.00016473,2]
[338571534,1726740645800,-500.0,0.00016473,2]
[338571535,1726740645809,-500.0,0.00016473,2]
[338571536,1726740645819,-500.0,0.00016473,2]
[338571537,1726740645828,-500.0,0.00016473,2]
[338571543,1726740646087,-500.0,0.00016473,2]
[338571544,1726740646110,-150.112233,0.000166,2]
[338571545,1726740646120,-948.0,0.000166,2]
[338571546,1726740646130,-150.112233,0.000167,2]
[338571548,1726740646140,-18779.93304629,0.00016712,5]
[338571549,1726740646149,-506.42098458,0.00016712,2]
[338571550,1726740646159,-500.0,0.00016712,2]
[338571551,1726740646169,-500.0,0.00016712,2]
[338571552,1726740646179,-500.0,0.00016712,2]
[338571553,1726740646188,-500.0,0.00016712,2]
[338571554,1726740646199,-500.0,0.00016712,2]
[338571555,1726740646210,-500.0,0.00016712,2]
[338571556,1726740646220,-500.0,0.00016712,2]
[338571557,1726740646229,-500.0,0.00016712,2]
[338571559,1726740646239,-500.0,0.00016712,2]
[338571560,1726740646248,-500.0,0.00016712,2]
[338571561,1726740646258,-500.0,0.00016712,2]
[338571562,1726740646267,-500.0,0.00016712,2]
[338571563,1726740646276,-551.57056552,0.00016712,2]
[338571564,1726740646286,-949.74,0.00016712,2]
[338571565,1726740646296,-500.0,0.00016712,2]
[338571566,1726740646306,-500.0,0.00016712,2]
[338571567,1726740646316,-500.0,0.00016712,2]
[338571568,1726740646326,-500.0,0.00016712,2]
[338571569,1726740646336,-654.45,0.00016712,2]
[338571570,1726740646346,-500.0,0.00016712,2]
[338571571,1726740646356,-500.0,0.00016712,2]
[338571572,1726740646365,-1068.34,0.00016712,2]
[338571573,1726740646375,-500.0,0.00016712,2]
[338571574,1726740646385,-1371.04,0.00016712,2]
[338571575,1726740646395,-500.0,0.00016712,2]
[338571576,1726740646406,-500.0,0.00016712,2]
[338571577,1726740646415,-500.0,0.00016712,2]
[338571578,1726740646425,-500.0,0.00016712,2]
[338571579,1726740646434,-500.0,0.00016712,2]
[338571580,1726740646443,-500.0,0.00016712,2]
[338571581,1726740646453,-565.56,0.00016712,2]
[338571582,1726740646464,-500.0,0.00016712,2]
[338571583,1726740646474,-500.0,0.00016712,2]
[338571584,1726740646483,-500.0,0.00016712,2]
[338571585,1726740646492,-500.0,0.00016712,2]
[338571586,1726740646501,-500.0,0.00016712,2]
[338571587,1726740646511,-500.0,0.00016712,2]
[338571588,1726740646520,-487.79803321,0.00016712,2]
[338571589,1726740646530,-500.0,0.00016712,2]
[338571590,1726740646539,-500.0,0.00016712,2]
[338571591,1726740646551,-500.0,0.00016712,2]
[338571592,1726740646560,-500.0,0.00016712,2]
[338571593,1726740646570,-500.0,0.00016712,2]
[338571594,1726740646579,-500.0,0.00016712,2]
[338571595,1726740646588,-500.0,0.00016712,2]
[338571596,1726740646599,-803.7,0.00016712,2]
[338571597,1726740646608,-500.0,0.00016712,2]
[338571598,1726740646617,-500.0,0.00016712,2]
[338571599,1726740646629,-236.82891839,0.00016712,2]
[338571600,1726740646639,-543.95,0.00016712,2]
[338571601,1726740646649,-500.0,0.00016712,2]
[338571602,1726740646659,-336.24501632,0.00016712,2]
[338571603,1726740646669,-500.0,0.00016712,2]
[338571604,1726740646678,-500.0,0.00016712,2]
[338571605,1726740646688,-500.0,0.00016712,2]
[338571606,1726740646698,-500.0,0.00016712,2]
[338571607,1726740646708,-500.0,0.00016712,2]
[338571608,1726740646717,-1662.48,0.00016712,2]
[338571609,1726740646727,-671.86,0.00016712,2]
[338571610,1726740646736,-500.12663284,0.00016712,2]
[338571611,1726740646746,-500.0,0.00016712,2]
[338571612,1726740646755,-500.0,0.00016712,2]
[338571613,1726740646765,-584.79049274,0.00016712,2]
[338571614,1726740646774,-560.77,0.00016712,2]
[338571616,1726740646784,-500.0,0.00016712,2]
[338571617,1726740646793,-865.34,0.00016712,2]
[338571618,1726740646803,-546.92188384,0.00016712,2]
[338571619,1726740646811,-500.0,0.00016712,2]
[338571620,1726740646821,-500.0,0.00016712,2]
[338571621,1726740646830,-500.0,0.00016712,2]
[338571622,1726740646839,-3295.12,0.00016712,2]
[338571623,1726740646850,-500.614042,0.00016712,2]
[338571624,1726740646859,-500.0,0.00016712,2]
[338571625,1726740646868,-500.0,0.00016712,2]
[338571626,1726740646878,-948.97,0.00016712,2]
[338571627,1726740646887,-500.0,0.00016712,2]
[338571628,1726740646897,-500.0,0.00016712,2]
[338571629,1726740646907,-974.21,0.00016712,2]
[338571630,1726740646916,-500.0,0.00016712,2]
[338571631,1726740646926,-171.06413189,0.00016712,2]
[338571632,1726740646935,-500.65189407,0.00016712,2]
[338571633,1726740646944,-501.13,0.00016712,2]
[338571634,1726740646954,-151.0,0.00016712,2]
[338571635,1726740646965,-151.0,0.00016712,2]
[338571636,1726740646974,-500.0,0.00016712,2]
[338571637,1726740646983,-1043.35,0.00016712,2]
[338571638,1726740646993,-500.0,0.00016712,2]
[338571639,1726740647003,-500.0,0.00016712,2]
[338571640,1726740647013,-661.81,0.00016712,2]
[338571641,1726740647022,-513.78535567,0.00016712,2]
[338571642,1726740647032,-500.0,0.00016712,2]
[338571643,1726740647041,-500.0,0.00016712,2]
[338571644,1726740647050,-500.0,0.00016712,2]
[338571645,1726740647060,-500.0,0.00016712,2]
[338571646,1726740647069,-500.0,0.00016712,2]
[338571647,1726740647079,-500.0,0.00016712,2]
[338571648,1726740647088,-500.0,0.00016712,2]
[338571649,1726740647097,-500.0,0.00016712,2]
[338571650,1726740647107,-500.0,0.00016712,2]
[338571651,1726740647116,-500.0,0.00016712,2]
[338571652,1726740647126,-697.62,0.00016712,2]
[338571653,1726740647135,-2324.75,0.00016712,2]
[338571654,1726740647144,-500.0,0.00016712,2]
[338571655,1726740647154,-1153.24,0.00016712,2]
[338571656,1726740647163,-854.21,0.00016712,2]
[338571657,1726740647172,-500.0,0.00016712,2]
[338571658,1726740647181,-500.0,0.00016712,2]
[338571659,1726740647190,-500.0,0.00016712,2]
[338571660,1726740647199,-500.0,0.00016712,2]
[338571661,1726740647209,-594.06,0.00016712,2]
[338571662,1726740647218,-1123.32,0.00016712,2]
[338571663,1726740647228,-1204.11,0.00016712,2]
[338571664,1726740647237,-841.72,0.00016712,2]
[338571665,1726740647247,-1003.28,0.00016712,2]
[338571666,1726740647257,-500.0,0.00016712,2]
[338571667,1726740647266,-1282.13,0.00016712,2]
[338571668,1726740647275,-609.28,0.00016712,2]
[338571669,1726740647284,-1543.84,0.00016712,2]
[338571670,1726740647294,-1151.05,0.00016712,2]
[338571671,1726740647303,-502.81289423,0.00016712,2]
[338571672,1726740647312,-500.0,0.00016712,2]
[338571673,1726740647321,-510.72285557,0.00016712,2]
[338571674,1726740647331,-500.0,0.00016712,2]
[338571675,1726740647339,-850.95,0.00016712,2]
[338571676,1726740647350,-207.09781665,0.00016712,2]
[338571677,1726740647359,-500.0,0.00016712,2]
[338571678,1726740647368,-500.0,0.00016712,2]
[338571679,1726740647378,-573.41,0.00016712,2]
[338571680,1726740647387,-798.1,0.00016712,2]
[338571681,1726740647396,-582.72700366,0.00016712,2]
[338571682,1726740647405,-500.0,0.00016712,2]
[338571683,1726740647415,-907.63,0.00016712,2]
[338571684,1726740647424,-1405.97,0.00016712,2]
[338571685,1726740647434,-500.0,0.00016712,2]
[338571686,1726740647443,-720.15,0.00016712,2]
[338571687,1726740647452,-500.0,0.00016712,2]
[338571688,1726740647462,-500.0,0.00016712,2]
[338571689,1726740647471,-500.0,0.00016712,2]
[338571690,1726740647481,-500.0,0.00016712,2]
[338571691,1726740647490,-500.69066583,0.00016712,2]
[338571692,1726740647499,-500.0,0.00016712,2]
[338571693,1726740647509,-500.0,0.00016712,2]
[338571694,1726740647518,-543.35,0.00016712,2]
[338571695,1726740647528,-500.0,0.00016712,2]
[338571696,1726740647537,-500.0,0.00016712,2]
[338571697,1726740647549,-500.0,0.00016712,2]
[338571698,1726740647559,-917.37,0.00016712,2]
[338571699,1726740647568,-500.0,0.00016712,2]
[338571700,1726740647578,-1749.37,0.00016712,2]
[338571701,1726740647587,-1480.0,0.00016712,2]
[338571702,1726740647598,-500.0,0.00016712,2]
[338571703,1726740647607,-773.55,0.00016712,2]
[338571704,1726740647616,-1214.97,0.00016712,2]
[338571705,1726740647627,-556.41,0.00016712,2]
[338571706,1726740647637,-1204.95,0.00016712,2]
[338571707,1726740647646,-1291.32,0.00016712,2]
[338571708,1726740647657,-500.0,0.00016712,2]
[338571709,1726740647669,-151.0,0.00016712,2]
[338571710,1726740647678,-906.12,0.00016712,2]
[338571711,1726740647687,-500.0,0.00016712,2]
[338571712,1726740647697,-500.0,0.00016712,2]
[338571713,1726740647706,-500.0,0.00016712,2]
[338571714,1726740647718,-777.76,0.00016712,2]
[338571715,1726740647729,-839.56,0.00016712,2]
[338571716,1726740647740,-500.0,0.00016712,2]
[338571717,1726740647749,-1362.74,0.00016712,2]